fUST/lending_fUST_20250425
["ID","MTS","AMOUNT","RATE_DAILY","PERIOD"]
[358935187,1745559038046,-235.93540191,0.00016773,2]
[358935189,1745559038055,-588.88960299,0.00016773,2]
[358935191,1745559038065,-500.0,0.00016773,2]
[358935193,1745559038074,-500.0,0.00016773,2]
[358935195,1745559038084,-500.0,0.00016773,2]
[358935197,1745559038094,-628.34494404,0.00016853,2]
[358935199,1745559038104,-1000.0,0.00016884,2]
[358935201,1745559038113,-166.15220311,0.0001693,2]
[358935203,1745559038124,-234.12,0.00016986,2]
[358935205,1745559038134,-500.0,0.00016986,2]
[358935207,1745559038144,-151.0,0.00016986,2]
[358935209,1745559038153,-930.43,0.00016986,2]
[358935211,1745559038164,-151.0,0.00016986,2]
[358935213,1745559038174,-929.9,0.00016986,2]
[358935215,1745559038183,-500.0,0.00016986,2]
[358935217,1745559038193,-838.74,0.00016986,2]
[358935218,1745559038202,-799.69,0.00016986,2]
[358935219,1745559038212,-975.09,0.00016986,2]
[358935220,1745559038221,-776.4,0.00016986,2]
[358935221,1745559038231,-160.26557,0.00016986,2]
[358935223,1745559038240,-160.26557,0.00016986,2]
[358935224,1745559038249,-151.0,0.00016986,2]
[358935225,1745559038258,-168.764119,0.00016986,2]
[358935226,1745559038268,-915.77,0.00016986,2]
[358935227,1745559038280,-854.75,0.00016986,2]
[358935228,1745559038289,-276.48,0.00016986,2]
[358935229,1745559038299,-1030.5,0.00016986,2]
[358935230,1745559038308,-904.41,0.00016986,2]
[358935231,1745559038318,-500.0,0.00016986,2]
[358935232,1745559038327,-683.47,0.00016986,2]
[358935233,1745559038336,-831.54,0.00016986,2]
[358935234,1745559038346,-151.0,0.00016986,2]
[358935235,1745559038355,-2246.15,0.00016986,2]
[358935236,1745559038364,-1013.26,0.00016986,2]
[358935237,1745559038373,-500.0,0.00016986,2]
[358935238,1745559038382,-500.0,0.00016986,2]
[358935239,1745559038391,-500.0,0.00016986,2]
[358935240,1745559038401,-601.13,0.00016986,2]
[358935241,1745559038411,-500.0,0.00016986,2]
[358935242,1745559038420,-500.0,0.00016986,2]
[358935243,1745559038429,-83.46183918,0.00016986,2]
[358935244,1745559038698,-744.22816082,0.00016986,2]
[358935245,1745559038707,-264.54188284,0.00016986,2]
[358935254,1745559039231,-573.14,0.00016438,2]
[358935255,1745559039240,-500.0,0.00016438,2]
[358935256,1745559039250,-500.0,0.00016438,2]
[358935257,1745559039259,-500.0,0.00016438,2]
[358935258,1745559039268,-43.40765956,0.00016438,2]
[358935345,1745559040549,-194.309936,0.00016237,2]
[358935347,1745559040560,-166.46980249,0.00016438,2]
[358935349,1745559040571,-290.12253795,0.00016438,2]
[358935351,1745559040584,-500.0,0.00016438,2]
[358935354,1745559040595,-505.76096099,0.00016438,2]
[358935356,1745559040605,-500.0,0.00016438,2]
[358935358,1745559040614,-500.0,0.00016438,2]
[358935360,1745559040624,-573.14,0.00016712,2]
[358935362,1745559040634,-500.0,0.00016712,2]
[358935364,1745559040643,-500.0,0.00016712,2]
[358935366,1745559040652,-500.0,0.00016712,2]
[358935368,1745559040662,-500.0,0.00016712,2]
[358935370,1745559040672,-688.99811716,0.00016986,2]
[358935372,1745559040681,-500.0,0.00016986,2]
[358935374,1745559040691,-500.26,0.00016986,2]
[358935376,1745559040700,-500.0,0.00016986,2]
[358935378,1745559040710,-1730.51,0.00016986,2]
[358935380,1745559040721,-500.0,0.00016986,2]
[358935382,1745559040732,-500.0,0.00016986,2]
[358935384,1745559040742,-500.0,0.00016986,2]
[358935386,1745559040753,-151.0,0.00016986,2]
[358935387,1745559040763,-500.0,0.00016986,2]
[358935388,1745559040774,-510.28,0.00016986,2]
[358935389,1745559040783,-500.0,0.00016986,2]
[358935391,1745559040793,-837.17,0.00016986,2]
[358935393,1745559040803,-500.0,0.00016986,2]
[358935396,1745559040812,-500.0,0.00016986,2]
[358935399,1745559040824,-2382.76,0.00016986,2]
[358935401,1745559040835,-989.56,0.00016986,2]
[358935403,1745559040846,-500.0,0.00016986,2]
[358935405,1745559040857,-910.98,0.00016986,2]
[358935407,1745559040867,-500.0,0.00016986,2]
[358935409,1745559040877,-500.0,0.00016986,2]
[358935411,1745559040888,-500.0,0.00016986,2]
[358935413,1745559040897,-500.0,0.00016986,2]
[358935415,1745559040906,-500.0,0.00016986,2]
[358935417,1745559040916,-500.0,0.00016986,2]
[358935419,1745559040927,-1410.53,0.00016986,2]
[358935421,1745559040936,-500.0,0.00016986,2]
[358935424,1745559040947,-951.13,0.00016986,2]
[358935426,1745559040958,-269.14242894,0.00016986,2]
[358935569,1745559043145,-500.0,0.00016438,2]
[358935570,1745559043155,-503.13225022,0.00016438,2]
[358935571,1745559043165,-503.35903981,0.00016438,2]
[358935572,1745559043174,-500.0,0.00016712,2]
[358935573,1745559043184,-506.53215251,0.00016712,2]
[358935574,1745559043193,-500.0,0.00016712,2]
[358935575,1745559043202,-230.85757106,0.00016986,2]
[358935576,1745559043212,-500.0,0.00016986,2]
[358935577,1745559043221,-500.0,0.00016986,2]
[358935578,1745559043230,-500.0,0.00016986,2]
[358935579,1745559043240,-963.7640913,0.00016986,2]
[358935949,1745559065974,1000.0,0.00014958,2]
[358935951,1745559202185,250.0,0.00014957,2]
[358935952,1745559209768,874.05801778,0.00014957,2]
[358935957,1745559246493,1000.0,0.00025,30]
[358935962,1745559281241,-185.5031295,0.0001501,2]
[358935963,1745559310785,1000.0,0.00025,30]
[358935966,1745559336864,-260.13133045,0.0001501,2]
[358935968,1745559342311,-287.92959457,0.0001501,2]
[358935969,1745559346104,-180.26243788,0.0001501,2]
[358935970,1745559350092,-329.24435643,0.0001501,2]
[358935971,1745559357798,-170.75564357,0.0001501,2]
[358935972,1745559362793,-182.23678652,0.0001501,2]
[358935973,1745559366111,-300.0,0.00015009,2]
[358935974,1745559366135,-423.62890634,0.0001501,2]
[358935975,1745559384593,-231.63368375,0.0001501,2]
[358935976,1745559392518,-221.79234277,0.0001501,2]
[358935977,1745559397080,-232.40037639,0.00015009,2]
[358935978,1745559397104,-121.01086199,0.00015009,2]
[358935979,1745559401433,-157.87000392,0.00015009,2]
[358935980,1745559404752,-195.54123446,0.00015009,2]
[358935981,1745559407946,-25.57789963,0.00015009,2]
[358935982,1745559407970,-312.91246652,0.00015009,2]
[358935983,1745559415507,-180.50963385,0.00015009,2]
[358935985,1745559420957,-6.57789963,0.00015009,2]
[358935986,1745559420981,-410.37186527,0.00015009,2]
[358935987,1745559437626,-210.17611774,0.00015008,2]
[358935988,1745559443565,-89.82388226,0.00015008,2]
[358935989,1745559443592,-19.06500797,0.00015009,2]
[358935990,1745559443620,-154.32037239,0.00015009,2]
[358935991,1745559443651,-375.67592111,0.00015009,2]
[358935992,1745559447011,250.0,0.00014901,2]
[358935993,1745559465388,-124.32407889,0.00015009,2]
[358935994,1745559465419,-27.67592111,0.00015009,2]
[358935995,1745559469878,-190.67382829,0.00015009,2]
[358935996,1745559474453,-281.6502506,0.00015009,2]
[358935997,1745559474478,-108.92758842,0.00015009,2]
[358935998,1745559482889,-223.01612894,0.00015009,2]
[358936001,1745559491397,-169.8359927,0.00015008,2]
[358936002,1745559491998,8298.7946831,0.00014835,2]
[358936003,1745559498054,-130.1640073,0.00015008,2]
[358936004,1745559498080,-20.4193226,0.00015009,2]
[358936005,1745559506260,-147.63696004,0.00015009,2]
[358936006,1745559506285,-5.05011528,0.00015009,2]
[358936007,1745559514888,-167.31635305,0.00015008,2]
[358936008,1745559520695,-59.15916454,0.00015008,2]
[358936009,1745559520719,-244.09880099,0.00015008,2]
[358936010,1745559527236,-255.90119901,0.00015008,2]
[358936011,1745559527261,-23.46825436,0.00015008,2]
[358936012,1745559532741,-279.06205625,0.00015008,2]
[358936013,1745559541519,-155.49395006,0.00015008,2]
[358936014,1745559541554,-68.65078675,0.00015008,2]
[358936015,1745559547595,-193.29626298,0.00015007,2]
[358936016,1745559550274,-106.70373702,0.00015007,2]
[358936017,1745559550299,-71.83471312,0.00015008,2]
[358936018,1745559556528,-316.55784123,0.00015008,2]
[358936019,1745559556554,-19.69821965,0.00015008,2]
[358936020,1745559561468,-168.12811076,0.00015008,2]
[358936021,1745559572270,-312.17366959,0.00015008,2]
[358936022,1745559572294,-151.21581941,0.00015008,2]
[358936023,1745559581366,-447.21588047,0.00015008,2]
[358936024,1745559585179,-40.37955052,0.00015008,2]
[358936025,1745559585212,-246.63695476,0.00015008,2]
[358936027,1745559590706,-253.36304524,0.00015008,2]
[358936028,1745559590731,-314.80944284,0.00015008,2]
[358936029,1745559595540,535.8427164,0.00014901,2]
[358936030,1745559603783,-500.0,0.00015007,2]
[358936031,1745559609605,-166.63018891,0.00015007,2]
[358936032,1745559621438,-207.86036884,0.00015007,2]
[358936033,1745559624143,-263.67939882,0.00015007,2]
[358936034,1745559630590,-61.83004343,0.00015007,2]
[358936035,1745559630614,-157.56467425,0.00015007,2]
[358936036,1745559634325,-142.43532575,0.00015007,2]
[358936037,1745559634350,-42.48799891,0.00015007,2]
[358936038,1745559641145,-219.39471768,0.00015007,2]
[358936039,1745559645592,-38.11728341,0.00015007,2]
[358936040,1745559645614,-119.32559883,0.00015007,2]
[358936041,1745559648816,-142.17424762,0.00015007,2]
[358936042,1745559648842,-42.08095612,0.00015007,2]
[358936043,1745559653509,-457.91904388,0.00015007,2]
[358936044,1745559653532,-121.44794251,0.00015007,2]
[358936045,1745559657675,-83.55543433,0.00015007,2]
[358936046,1745559657702,-319.16944221,0.00015007,2]
[358936047,1745559664150,-300.0,0.00015006,2]
[358936048,1745559664174,-1.44754026,0.00015007,2]
[358936049,1745559664198,-198.55245974,0.00015007,2]
[358936050,1745559669995,-352.06818478,0.00015007,2]
[358936051,1745559670021,-12.45219478,0.00015007,2]
[358936052,1745559676477,-173.25267973,0.00015007,2]
[358936053,1745559679317,-283.74161928,0.00015007,2]
[358936055,1745559684785,-30.55350621,0.00015007,2]
[358936056,1745559684812,-212.34538691,0.00015007,2]
[358936057,1745559693882,-200.0,0.00015007,2]
[358936058,1745559698654,-87.65461309,0.00015007,2]
[358936059,1745559698689,-71.43103517,0.00015007,2]
[358936060,1745559703044,-420.2622828,0.00015007,2]
[358936061,1745559709273,-8.30668203,0.00015007,2]
[358936062,1745559709307,-289.08743552,0.00015007,2]
[358936063,1745559711021,-210.91256448,0.00015007,2]
[358936064,1745559711062,-78.17487104,0.00015007,2]
[358936065,1745559717515,-160.05484675,0.00015007,2]
[358936066,1745559720305,-261.77028221,0.00015007,2]
[358936067,1745559720346,-38.22971779,0.00015007,2]
[358936069,1745559727019,-181.65434235,0.00015006,2]
[358936070,1745559732387,-118.34565765,0.00015006,2]
[358936071,1745559732419,-86.23330815,0.00015007,2]
[358936072,1745559737883,-197.56816028,0.00015007,2]
[358936073,1745559741715,-177.11399919,0.00015007,2]
[358936074,1745559741749,-322.88600081,0.00015007,2]
[358936075,1745559745675,-177.11399919,0.00015007,2]
[358936076,1745559745709,-125.20880281,0.00015007,2]
[358936077,1745559750086,-374.79119719,0.00015007,2]
[358936078,1745559750122,-429.45528297,0.00015007,2]
[358936079,1745559765366,-211.17709571,0.00015006,2]
[358936080,1745559769134,-154.80012704,0.00015006,2]
[358936081,1745559773601,-134.02277725,0.00015006,2]
[358936082,1745559773624,-49.75433944,0.00015006,2]
[358936083,1745559776781,-137.47642389,0.00015006,2]
[358936084,1745559776804,-18.3557049,0.00015006,2]
[358936085,1745559780685,-161.42275627,0.00015006,2]
[358936086,1745559785174,-153.5793824,0.00015005,2]
[358936087,1745559791965,-146.4206176,0.00015005,2]
[358936088,1745559791988,-44.65342656,0.00015006,2]
[358936089,1745559792012,-63.14195341,0.00015006,2]
[358936090,1745559806687,-164.33614314,0.00015006,2]
[358936091,1745559809280,-272.52190345,0.00015006,2]
[358936092,1745559809304,-17.35795098,0.00015006,2]
[358936093,1745559814268,-191.24971183,0.00015006,2]
[358936094,1745559814294,-163.34706509,0.00015006,2]
[358936095,1745559818675,-191.03926384,0.00015006,2]
[358936096,1745559821870,-145.61367107,0.00015006,2]
[358936097,1745559821893,-348.6446419,0.00015006,2]
[358936098,1745559826150,-151.3553581,0.00015006,2]
[358936099,1745559826173,-70.11972431,0.00015006,2]
[358936100,1745559830654,-291.76242607,0.00015006,2]
[358936101,1745559830682,-500.0,0.00015006,2]
[358936102,1745559830707,-119.25304553,0.00015006,2]
[358936103,1745559834881,-380.74695447,0.00015006,2]
[358936104,1745559834915,-26.41023098,0.00015006,2]
[358936105,1745559839982,-473.58976902,0.00015006,2]
[358936106,1745559840007,-215.95062017,0.00015006,2]
[358936107,1745559842984,-300.0,0.00015005,2]
[358936108,1745559843010,-260.16338411,0.00015006,2]
[358936109,1745559850426,-23.88599572,0.00015006,2]
[358936110,1745559850452,-216.11849138,0.00015006,2]
[358936111,1745559854125,-40.84198687,0.00015006,2]
[358936112,1745559854150,-114.99014192,0.00015006,2]
[358936114,1745559857371,-215.00408109,0.00015006,2]
[358936115,1745559863581,-157.006,0.00015006,2]
[358936116,1745559867420,-19.89244551,0.00015006,2]
[358936117,1745559867637,-280.10755449,0.00015006,2]
[358936118,1745559868947,1083.72907008,0.00014937,2]
[358936119,1745559875523,-194.41466304,0.00015005,2]
[358936120,1745559875547,-105.58533696,0.00015005,2]
[358936121,1745559886713,-157.006,0.00015005,2]
[358936122,1745559893449,-194.89772312,0.00015005,2]
[358936123,1745559898113,-42.51093992,0.00015005,2]
[358936124,1745559898140,-132.48353419,0.00015005,2]
[358936125,1745559908272,-325.00552589,0.00015004,2]
[358936126,1745559911145,-272.60841143,0.00015004,2]
[358936127,1745559915150,-159.37381306,0.00015004,2]
[358936128,1745559919984,-179.34730719,0.00015004,2]
[358936129,1745559923401,-168.65269281,0.00015004,2]
[358936130,1745559927337,-95.01224962,0.00015004,2]
[358936131,1745559927361,-183.51266797,0.00015004,2]
[358936133,1745559937093,-116.48733203,0.00015004,2]
[358936134,1745559937118,-124.93125513,0.00015004,2]
[358936135,1745559940575,-175.06874487,0.00015004,2]
[358936136,1745559940601,-103.19692646,0.00015005,2]
[358936137,1745559946332,-227.59809904,0.00015005,2]
[358936138,1745559946357,-120.38190096,0.00015005,2]
[358936139,1745559956519,-36.72042045,0.00015005,2]
[358936140,1745559956545,-227.63907955,0.00015005,2]
[358936141,1745559965304,-165.41572321,0.00015005,2]
[358936142,1745559994581,-252.50792266,0.00015004,2]
[358936143,1745560000958,-152.0,0.00015004,2]
[358936144,1745560003633,-95.49207734,0.00015004,2]
[358936145,1745560003662,-95.04354975,0.00015004,2]
[358936146,1745560009203,-229.05306563,0.00015004,2]
[358936147,1745560014878,-3.77179318,0.00015004,2]
[358936148,1745560014902,-500.0,0.00015004,2]
[358936149,1745560014926,-500.0,0.00015004,2]
[358936150,1745560014959,-13.24278578,0.00015004,2]
[358936151,1745560021972,-486.75721422,0.00015004,2]
[358936152,1745560021999,-277.17344315,0.00015004,2]
[358936153,1745560034084,-300.0,0.00015003,2]
[358936154,1745560034109,-222.82655685,0.00015004,2]
[358936155,1745560034140,-500.0,0.00015004,2]
[358936156,1745560034162,-33.05033657,0.00015004,2]
[358936157,1745560042103,-220.19997078,0.00015004,2]
[358936158,1745560042133,-500.0,0.00015004,2]
[358936159,1745560042157,-500.0,0.00015004,2]
[358936160,1745560042187,-500.0,0.00015004,2]
[358936161,1745560042216,-500.0,0.00015004,2]
[358936162,1745560042240,-578.98238072,0.00015004,2]
[358936163,1745560042269,-472.77765044,0.00015004,2]
[358936164,1745560045513,-27.22234956,0.00015004,2]
[358936165,1745560045544,-237.13715044,0.00015004,2]
[358936166,1745560046109,-262.86284956,0.00015004,2]
[358936167,1745560046138,-500.0,0.00015004,2]
[358936168,1745560046166,-470.37226051,0.00015004,2]
[358936169,1745560046194,-500.0,0.00015004,2]
[358936170,1745560046222,-500.0,0.00015004,2]
[358936171,1745560046250,-500.0,0.00015004,2]
[358936172,1745560046277,-500.0,0.00015004,2]
[358936173,1745560046304,-500.0,0.00015004,2]
[358936174,1745560046331,-465.99529074,0.00015004,2]
[358936175,1745560055268,-34.00470926,0.00015004,2]
[358936176,1745560055299,-233.25600497,0.00015004,2]
[358936177,1745560065880,-162.17484501,0.00015004,2]
[358936178,1745560070143,-104.56915002,0.00015004,2]
[358936179,1745560070172,-89.85501206,0.00015004,2]
[358936180,1745560075764,-197.37084585,0.00015004,2]
[358936181,1745560082308,-185.429996,0.00015004,2]
[358936182,1745560085503,-153.40415022,0.00015003,2]
[358936183,1745560088167,-146.59584978,0.00015003,2]
[358936184,1745560088198,-27.34414609,0.00015004,2]
[358936185,1745560088228,-191.2849374,0.00015004,2]
[358936186,1745560094682,-241.08063433,0.00015004,2]
[358936187,1745560099544,-67.63442827,0.00015004,2]
[358936188,1745560099574,-142.14091123,0.00015004,2]
[358936189,1745560104875,-210.15586831,0.00015004,2]
[358936190,1745560108697,-147.70322046,0.00015004,2]
[358936191,1745560108725,-142.14091123,0.00015004,2]
[358936193,1745560112719,-152.0,0.00015004,2]
[358936197,1745560114643,10000.0,0.00014981,2]
[358936198,1745560116799,-197.677198,0.00015004,2]
[358936199,1745560119617,-8.18189077,0.00015004,2]
[358936200,1745560119644,-455.27426822,0.00015004,2]
[358936201,1745560124796,-44.72573178,0.00015004,2]
[358936202,1745560124821,-113.43993177,0.00015004,2]
[358936203,1745560130268,-341.83433645,0.00015004,2]
[358936204,1745560138387,-44.72573178,0.00015004,2]
[358936205,1745560138410,-259.34990552,0.00015004,2]
[358936206,1745560145094,-156.06766925,0.00015004,2]
[358936207,1745560146093,-84.58242523,0.00015004,2]
[358936208,1745560146116,-539.25945055,0.00015004,2]
[358936209,1745560146145,-500.0,0.00015004,2]
[358936210,1745560146174,-500.0,0.00015004,2]
[358936211,1745560146202,-500.0,0.00015004,2]
[358936212,1745560146229,-500.0,0.00015004,2]
[358936213,1745560146263,-500.0,0.00015004,2]
[358936214,1745560146292,-500.0,0.00015004,2]
[358936215,1745560146320,-500.0,0.00015004,2]
[358936216,1745560146349,-500.0,0.00015004,2]
[358936217,1745560146378,-500.0,0.00015004,2]
[358936218,1745560146405,-353.42185004,0.00015004,2]
[358936219,1745560146435,-500.0,0.00015004,2]
[358936220,1745560146463,-500.0,0.00015004,2]
[358936221,1745560146490,-500.0,0.00015004,2]
[358936222,1745560146516,-500.0,0.00015004,2]
[358936223,1745560146543,-374.11517477,0.00015004,2]
[358936224,1745560147668,-125.88482523,0.00015004,2]
[358936225,1745560147699,-76.78711909,0.00015004,2]
[358936226,1745560150272,-423.21288091,0.00015004,2]
[358936227,1745560150301,-500.0,0.00015004,2]
[358936228,1745560150328,-500.0,0.00015004,2]
[358936229,1745560150356,-500.0,0.00015004,2]
[358936230,1745560150385,-500.0,0.00015004,2]
[358936231,1745560150413,-500.0,0.00015004,2]
[358936232,1745560150440,-500.0,0.00015004,2]
[358936233,1745560150468,-500.0,0.00015004,2]
[358936234,1745560150495,-500.0,0.00015004,2]
[358936235,1745560150522,-500.0,0.00015004,2]
[358936236,1745560150548,-500.0,0.00015004,2]
[358936237,1745560150574,-500.0,0.00015004,2]
[358936238,1745560150599,-500.0,0.00015004,2]
[358936239,1745560150625,-500.0,0.00015004,2]
[358936240,1745560150657,-500.0,0.00015004,2]
[358936241,1745560150682,-500.0,0.00015004,2]
[358936242,1745560150710,-200.0,0.00015004,2]
[358936243,1745560150731,-161.16585378,0.00015004,2]
[358936244,1745560150756,-434.77506673,0.00015004,2]
[358936245,1745560150776,-159.36455882,0.00015004,2]
[358936246,1745560150797,-270.37983708,0.00015004,2]
[358936247,1745560150817,-194.42416208,0.00015004,2]
[358936248,1745560150838,-197.37084585,0.00015004,2]
[358936249,1745560150869,-556.55193776,0.00015004,2]
[358936250,1745560150891,-338.83414622,0.00015004,2]
[358936251,1745560150921,-365.22493327,0.00015004,2]
[358936252,1745560150945,-241.08063433,0.00015004,2]
[358936253,1745560150975,-500.0,0.00015004,2]
[358936254,1745560150997,-197.677198,0.00015004,2]
[358936255,1745560151018,-209.7753395,0.00015004,2]
[358936256,1745560151047,-615.45615899,0.00015004,2]
[358936257,1745560151075,-500.0,0.00015004,2]
[358936258,1745560151095,-404.50792266,0.00015004,2]
[358936259,1745560151118,-19479.09389462,0.0001501,2]
[358936260,1745560151140,-348.145262,0.00015037,2]
[358936261,1745560151160,-385.57018301,0.00015217,2]
[358936262,1745560182265,-152.02078535,0.00015004,2]
[358936263,1745560203579,-170.63811271,0.00015002,2]
[358936264,1745560212871,-47.36188729,0.00015002,2]
[358936265,1745560212899,-104.63811271,0.00015002,2]
[358936266,1745560219549,191.37972229,0.00014903,2]
[358936267,1745560219735,-195.36188729,0.00015002,2]
[358936268,1745560219760,-10.0,0.00015003,2]
[358936269,1745560222822,-165.44248675,0.00015003,2]
[358936270,1745560222845,-152.05485195,0.00015003,2]
[358936271,1745560222877,-205.56185381,0.00015003,2]
[358936304,1745560232296,-153.05344201,0.00015003,2]
[358936307,1745560232320,-141.38470418,0.00015003,2]
[358936309,1745560232334,-500.0,0.00015003,2]
[358936310,1745560232348,-500.0,0.00015003,2]
[358936311,1745560232362,-500.0,0.00015003,2]
[358936312,1745560232376,-542.06377009,0.00015003,2]
[358936313,1745560232390,-96.33967949,0.00015217,2]
[358936314,1745560232403,-408.0,0.000156,2]
[358936315,1745560232415,-274.12463838,0.00015964,2]
[358936316,1745560232428,-1436.60327168,0.00015964,2]
[358936317,1745560232440,-350.8267431,0.00016164,2]
[358936318,1745560232452,-207.4,0.00016428,2]
[358936319,1745560232464,-153.65920043,0.00016428,2]
[358936320,1745560232477,-502.04536911,0.00016438,2]
[358936321,1745560232490,-1841.41,0.00016438,2]
[358936322,1745560232501,-500.0,0.00016438,2]
[358936323,1745560232514,-501.86539723,0.00016438,2]
[358936324,1745560232524,-503.57180287,0.00016438,2]
[358936325,1745560232535,-500.0,0.00016438,2]
[358936326,1745560232547,-502.13304894,0.00016438,2]
[358936327,1745560232561,-500.0,0.00016438,2]
[358936328,1745560232573,-533.99855351,0.00016438,2]
[358936329,1745560232585,-500.0,0.00016438,2]
[358936330,1745560232598,-500.0,0.00016438,2]
[358936331,1745560232613,-500.0,0.00016438,2]
[358936332,1745560232626,-1127.76,0.00016438,2]
[358936333,1745560232641,-500.0,0.00016438,2]
[358936334,1745560232655,-500.0,0.00016438,2]
[358936335,1745560232668,-500.0,0.00016438,2]
[358936336,1745560232682,-503.56866192,0.00016438,2]
[358936337,1745560232696,-500.0,0.00016438,2]
[358936338,1745560232708,-500.0,0.00016438,2]
[358936339,1745560232720,-485.18159098,0.00016438,2]
[358936340,1745560232730,-500.0,0.00016438,2]
[358936341,1745560232742,-500.0,0.00016438,2]
[358936342,1745560232752,-500.0,0.00016438,2]
[358936343,1745560232764,-242.72216951,0.00016438,2]
[358936344,1745560232777,-505.23380968,0.00016438,2]
[358936345,1745560232793,-500.0,0.00016438,2]
[358936346,1745560232805,-500.0,0.00016438,2]
[358936347,1745560232819,-968.71,0.00016438,2]
[358936348,1745560232832,-506.78000261,0.00016438,2]
[358936349,1745560232843,-504.51910402,0.00016438,2]
[358936350,1745560232857,-500.0,0.00016438,2]
[358936351,1745560232869,-505.30722418,0.00016438,2]
[358936352,1745560232881,-163.5002458,0.00016438,2]
[358936353,1745560232898,-500.0,0.00016438,2]
[358936354,1745560232910,-500.0,0.00016438,2]
[358936355,1745560232920,-500.0,0.00016438,2]
[358936356,1745560232931,-898.37,0.00016438,2]
[358936357,1745560232943,-500.0,0.00016438,2]
[358936358,1745560232953,-1031.45,0.00016438,2]
[358936359,1745560232965,-500.0,0.00016438,2]
[358936360,1745560232979,-838.59,0.00016438,2]
[358936361,1745560232991,-933.51,0.00016438,2]
[358936362,1745560233003,-500.0,0.00016438,2]
[358936363,1745560233013,-509.75847061,0.00016438,2]
[358936364,1745560233025,-507.01303529,0.00016438,2]
[358936365,1745560233036,-928.32,0.00016438,2]
[358936366,1745560233048,-506.3205114,0.00016438,2]
[358936367,1745560233059,-965.64,0.00016438,2]
[358936368,1745560233072,-1059.46,0.00016438,2]
[358936369,1745560233084,-500.0,0.00016438,2]
[358936370,1745560233096,-500.0,0.00016438,2]
[358936371,1745560233107,-502.41255968,0.00016438,2]
[358936372,1745560233119,-500.0,0.00016438,2]
[358936373,1745560233131,-736.3,0.00016438,2]
[358936374,1745560233143,-1136.21,0.00016438,2]
[358936375,1745560233155,-470.25252726,0.00016438,2]
[358936376,1745560233167,-500.0,0.00016438,2]
[358936377,1745560233178,-500.0,0.00016438,2]
[358936378,1745560233190,-500.0,0.00016438,2]
[358936379,1745560233201,-500.0,0.00016438,2]
[358936380,1745560233212,-509.04622644,0.00016438,2]
[358936381,1745560233224,-503.25764809,0.00016438,2]
[358936382,1745560233237,-500.0,0.00016438,2]
[358936383,1745560233249,-500.0,0.00016438,2]
[358936384,1745560233261,-500.0,0.00016438,2]
[358936385,1745560233272,-500.0,0.00016438,2]
[358936386,1745560233285,-506.72275636,0.00016438,2]
[358936387,1745560233296,-500.0,0.00016438,2]
[358936388,1745560233308,-500.0,0.00016438,2]
[358936389,1745560233320,-500.0,0.00016438,2]
[358936390,1745560233332,-500.0,0.00016438,2]
[358936391,1745560233344,-500.0,0.00016438,2]
[358936392,1745560233355,-500.0,0.00016438,2]
[358936393,1745560233368,-500.0,0.00016438,2]
[358936394,1745560233379,-500.0,0.00016438,2]
[358936395,1745560233391,-185.51158809,0.00016438,2]
[358936396,1745560233403,-1298.42,0.00016438,2]
[358936397,1745560233415,-578.33,0.00016438,2]
[358936398,1745560233427,-500.0,0.00016438,2]
[358936399,1745560233439,-620.39,0.00016438,2]
[358936400,1745560233451,-2283.48,0.00016438,2]
[358936401,1745560233463,-500.0,0.00016438,2]
[358936402,1745560233474,-819.73,0.00016438,2]
[358936403,1745560233485,-500.0,0.00016438,2]
[358936404,1745560233497,-500.0,0.00016438,2]
[358936405,1745560233508,-500.0,0.00016438,2]
[358936406,1745560233520,-509.80186877,0.00016438,2]
[358936407,1745560233532,-500.0,0.00016438,2]